Workbook

Sheet Gradebook View
A1: x | E1: 4 | F1: 8 | G1: 7 | H1: 0 | I1: 6 | J1: 4 | K1: 10 | M1: 9 | N1: 3 | O1: 5 | P1: 15 | Q1: 12 | R1: 20 | S1: 24 | T1: 37 | U1: 28 | V1: 50 | W1: 70 | X1: 880
AC2: Category Weighting
D3: Typical Gradebook | AC3: 0.2 | AD3: 0.35 | AE3: =1-SUM(AC3:AD3) -> 0.45
C4: 1
D5: Homework | P5: Quiz | V5: Test | Y5: Total Points | AC5: Category Averages
C6: Assignment | D6: 10 | E6: 10 | F6: 10 | G6: 10 | H6: 10 | I6: 10 | J6: 10 | K6: 10 | L6: 10 | M6: 10 | N6: 10 | O6: 10 | P6: 20 | Q6: 25 | R6: 30 | S6: 35 | T6: 40 | U6: 45 | V6: 80 | W6: 100 | X6: 125 | Y6: =SUM(D6:X6) -> 620 | AA6: Total Pts Earned | AC6: HW | AD6: Q | AE6: T | AG6: HW | AH6: Q | AI6: T | AK6: Weighted Ave
C7: Student A | D7: 10 | E7: 10 | F7: 10 | G7: 10 | H7: 10 | I7: 10 | J7: 10 | K7: 10 | L7: 10 | M7: 10 | N7: 10 | O7: 10 | P7: 20 | Q7: 25 | R7: 30 | S7: 35 | T7: 40 | U7: 45 | V7: 80 | W7: 100 | X7: 125 | Y7: =SUM(D7:X7) -> 620 | AA7: =$Y$7/$Y$6 -> 1 | AC7: =SUM(D7:O7)/SUM($D$6:$O$6) -> 1 | AD7: =SUM(P7:U7)/SUM($P$6:$U$6) -> 1 | AE7: =SUM(V7:X7)/SUM($V$6:$X$6) -> 1 | AG7: =$AC$3*AC7 -> 0.2 | AH7: =$AD$3*AD7 -> 0.35 | AI7: =$AE$3*AE7 -> 0.45 | AK7: =SUM(AG7:AI7) -> 1
C8: Late?
C10: Student B | D10: 10 | E10: 10 | F10: 10 | G10: 10 | H10: 10 | I10: 10 | J10: 10 | K10: 10 | L10: 10 | M10: 10 | N10: 10 | O10: 10 | P10: 20 | Q10: 25 | R10: 30 | S10: 35 | T10: 40 | U10: 45 | V10: 80 | W10: 100 | X10: 125 | Y10: =SUM(D10:X10) -> 620 | AA10: =$Y$10/$Y$6 -> 1 | AC10: =SUM(D10:O10)/SUM($D$6:$O$6) -> 1 | AD10: =SUM(P10:U10)/SUM($P$6:$U$6) -> 1 | AE10: =SUM(V10:X10)/SUM($V$6:$X$6) -> 1 | AG10: =$AC$3*AC10 -> 0.2 | AH10: =$AD$3*AD10 -> 0.35 | AI10: =$AE$3*AE10 -> 0.45 | AK10: =SUM(AG10:AI10) -> 1
C11: Late?
B13: Points Based
D14: Late Policy Impact Calculations
B16: Late work | C16: Student A | D16: =IF(D8="x",0,D7) -> 10 | E16: =IF(E8="x",0,E7) -> 10 | F16: 10 | G16: 10 | H16: 10 | I16: 10 | J16: 10 | K16: 10 | L16: 10 | M16: 10 | N16: 10 | O16: 10 | P16: 20 | Q16: 25 | R16: 30 | S16: 35 | T16: 40 | U16: 45 | V16: 80 | W16: 100 | X16: 125 | Y16: =SUM(D16:X16) -> 620 | AA16: =Y16/$Y$6 -> 1 | AC16: =SUM(D16:O16)/SUM($D$6:$O$6) -> 1 | AD16: =SUM(P16:U16)/SUM($P$6:$U$6) -> 1 | AE16: =SUM(V16:X16)/SUM($V$6:$X$6) -> 1 | AG16: =$AC$3*AC16 -> 0.2 | AH16: =$AD$3*AD16 -> 0.35 | AI16: =$AE$3*AE16 -> 0.45 | AK16: =SUM(AG16:AI16) -> 1
B17: recorded as
B18: a zero (0). | C18: Student B | D18: =IF(D11="x",0,D10) -> 10 | E18: =IF(E11="x",0,E10) -> 10 | F18: =IF(F11="x",0,F10) -> 10 | G18: 10 | H18: 10 | I18: 10 | J18: 10 | K18: 10 | L18: 10 | M18: 10 | N18: 10 | O18: 10 | P18: 20 | Q18: 25 | R18: 30 | S18: 35 | T18: 40 | U18: 45 | V18: 80 | W18: 100 | X18: 125 | Y18: =SUM(D18:X18) -> 620 | AA18: =Y18/$Y$6 -> 1 | AC18: =SUM(D18:O18)/SUM($D$6:$O$6) -> 1 | AD18: =SUM(P18:U18)/SUM($P$6:$U$6) -> 1 | AE18: =SUM(V18:X18)/SUM($V$6:$X$6) -> 1 | AG18: =$AC$3*AC18 -> 0.2 | AH18: =$AD$3*AD18 -> 0.35 | AI18: =$AE$3*AE18 -> 0.45 | AK18: =SUM(AG18:AI18) -> 1
B21: Late penalty | C21: Student A | D21: =IF(D$8="x",(D$7-($B$23*D$6)),D$7) -> 10 | E21: =IF(E$8="x",(E$7-($B$23*E$6)),E$7) -> 10 | F21: 10 | G21: 10 | H21: 10 | I21: 10 | J21: 10 | K21: 10 | L21: 10 | M21: 10 | N21: 10 | O21: 10 | P21: 20 | Q21: 25 | R21: 30 | S21: 35 | T21: 40 | U21: 45 | V21: 80 | W21: 100 | X21: 125 | Y21: =SUM(D21:X21) -> 620 | AA21: =Y21/Y6 -> 1 | AC21: =SUM(D21:O21)/SUM($D$6:$O$6) -> 1 | AD21: =SUM(P21:U21)/SUM($P$6:$U$6) -> 1 | AE21: =SUM(V21:X21)/SUM($V$6:$X$6) -> 1 | AG21: =$AC$3*AC21 -> 0.2 | AH21: =$AD$3*AD21 -> 0.35 | AI21: =$AE$3*AE21 -> 0.45 | AK21: =SUM(AG21:AI21) -> 1
B22: deduction
B23: 0.2 | C23: Student B | D23: =IF(D$11="x",(D$10-($B$23*D$6)),D$10) -> 10 | E23: =IF(E$11="x",(E$10-($B$23*E$6)),E$10) -> 10 | F23: 10 | G23: 10 | H23: 10 | I23: 10 | J23: 10 | K23: 10 | L23: 10 | M23: 10 | N23: 10 | O23: 10 | P23: 20 | Q23: 25 | R23: 30 | S23: 35 | T23: 40 | U23: 45 | V23: 80 | W23: 100 | X23: 125 | Y23: =SUM(D23:X23) -> 620 | AA23: =Y23/Y6 -> 1 | AC23: =SUM(D23:O23)/SUM($D$6:$O$6) -> 1 | AD23: =SUM(P23:U23)/SUM($P$6:$U$6) -> 1 | AE23: =SUM(V23:X23)/SUM($V$6:$X$6) -> 1 | AG23: =$AC$3*AC23 -> 0.2 | AH23: =$AD$3*AD23 -> 0.35 | AI23: =$AE$3*AE23 -> 0.45 | AK23: =SUM(AG23:AI23) -> 1
B26: Late penalty | C26: Student A | D26: =IF(D8="x",IF(D21/D$6<0.5,0.5*D$6,D21),IF(D7/D$6<0.5,0.5*D$6,D7)) -> 10 | E26: =IF(E8="x",IF(E21/E$6<0.5,0.5*E$6,E21),IF(E7/E$6<0.5,0.5*E$6,E7)) -> 10 | F26: =IF(F8="x",IF(F21/F$6<0.5,0.5*F$6,F21),IF(F7/F$6<0.5,0.5*F$6,F7)) -> 10 | G26: 10 | H26: 10 | I26: 10 | J26: 10 | K26: 10 | L26: 10 | M26: 10 | N26: 10 | O26: 10 | P26: 20 | Q26: 25 | R26: 30 | S26: 35 | T26: 40 | U26: 45 | V26: 80 | W26: 100 | X26: 125 | Y26: =SUM(D26:X26) -> 620 | AA26: =Y26/$Y$6 -> 1 | AC26: =SUM(D26:O26)/SUM($D$6:$O$6) -> 1 | AD26: =SUM(P26:U26)/SUM($P$6:$U$6) -> 1 | AE26: =SUM(V26:X26)/SUM($V$6:$X$6) -> 1 | AG26: =$AC$3*AC26 -> 0.2 | AH26: =$AD$3*AD26 -> 0.35 | AI26: =$AE$3*AE26 -> 0.45 | AK26: =SUM(AG26:AI26) -> 1
B27: and floor of
B28: 0.5 | C28: Student B | D28: =IF(D11="x",IF(D23/D$6<0.5,0.5*D$6,D23),IF(D10/D$6<0.5,0.5*D$6,D10)) -> 10 | E28: =IF(E11="x",IF(E23/E$6<0.5,0.5*E$6,E23),IF(E10/E$6<0.5,0.5*E$6,E10)) -> 10 | F28: =IF(F11="x",IF(F23/F$6<0.5,0.5*F$6,F23),IF(F10/F$6<0.5,0.5*F$6,F10)) -> 10 | G28: 10 | H28: 10 | I28: 10 | J28: 10 | K28: 10 | L28: 10 | M28: 10 | N28: 10 | O28: 10 | P28: 20 | Q28: 25 | R28: 30 | S28: 35 | T28: 40 | U28: 45 | V28: 80 | W28: 100 | X28: 125 | Y28: =SUM(D28:X28) -> 620 | AA28: =Y28/$Y$6 -> 1 | AC28: =SUM(D28:O28)/SUM($D$6:$O$6) -> 1 | AD28: =SUM(P28:U28)/SUM($P$6:$U$6) -> 1 | AE28: =SUM(V28:X28)/SUM($V$6:$X$6) -> 1 | AG28: =$AC$3*AC28 -> 0.2 | AH28: =$AD$3*AD28 -> 0.35 | AI28: =$AE$3*AE28 -> 0.45 | AK28: =SUM(AG28:AI28) -> 1
C32: Student A | D32: =D7/D$6 -> 1 | E32: =E7/E$6 -> 1 | F32: 1 | G32: 1 | H32: 1 | I32: 1 | J32: 1 | K32: 1 | L32: 1 | M32: 1 | N32: 1 | O32: 1 | P32: 1 | Q32: 1 | R32: 1 | S32: 1 | T32: 1 | U32: 1 | V32: 1 | W32: 1 | X32: 1 | AC32: =AVERAGE(D32:O32) -> 1 | AD32: =AVERAGE(P32:U32) -> 1 | AE32: =AVERAGE(V32:X32) -> 1 | AG32: =$AC$3*AC32 -> 0.2 | AH32: =$AD$3*AD32 -> 0.35 | AI32: =$AE$3*AE32 -> 0.45 | AK32: =SUM(AG32:AI32) -> 1
C34: Student B | D34: =D10/D$6 -> 1 | E34: =E10/E$6 -> 1 | F34: 1 | G34: 1 | H34: 1 | I34: 1 | J34: 1 | K34: 1 | L34: 1 | M34: 1 | N34: 1 | O34: 1 | P34: 1 | Q34: 1 | R34: 1 | S34: 1 | T34: 1 | U34: 1 | V34: 1 | W34: 1 | X34: 1 | AC34: =AVERAGE(D34:O34) -> 1 | AD34: =AVERAGE(P34:U34) -> 1 | AE34: =AVERAGE(V34:X34) -> 1 | AG34: =$AC$3*AC34 -> 0.2 | AH34: =$AD$3*AD34 -> 0.35 | AI34: =$AE$3*AE34 -> 0.45 | AK34: =SUM(AG34:AI34) -> 1
B36: Percent Based
D37: Late Policy Impact Calculations
B39: Late work | C39: Student A | D39: =IF(D$8="x",0,D32) -> 1 | E39: =IF(E$8="x",0,E32) -> 1 | F39: =IF(F$8="x",0,F32) -> 1 | G39: 1 | H39: 1 | I39: 1 | J39: 1 | K39: 1 | L39: 1 | M39: 1 | N39: 1 | O39: 1 | P39: 1 | Q39: 1 | R39: 1 | S39: 1 | T39: 1 | U39: 1 | V39: 1 | W39: 1 | X39: 1 | AC39: =AVERAGE(D39:O39) -> 1 | AD39: =AVERAGE(P39:U39) -> 1 | AE39: =AVERAGE(V39:X39) -> 1 | AG39: =$AC$3*AC39 -> 0.2 | AH39: =$AD$3*AD39 -> 0.35 | AI39: =$AE$3*AE39 -> 0.45 | AK39: =SUM(AG39:AI39) -> 1
B40: recorded as
B41: a zero (0). | C41: Student B | D41: =IF(D$11="x",0,D34) -> 1 | E41: =IF(E$11="x",0,E34) -> 1 | F41: =IF(F$11="x",0,F34) -> 1 | G41: 1 | H41: 1 | I41: 1 | J41: 1 | K41: 1 | L41: 1 | M41: 1 | N41: 1 | O41: 1 | P41: 1 | Q41: 1 | R41: 1 | S41: 1 | T41: 1 | U41: 1 | V41: 1 | W41: 1 | X41: 1 | AC41: =AVERAGE(D41:O41) -> 1 | AD41: =AVERAGE(P41:U41) -> 1 | AE41: =AVERAGE(V41:X41) -> 1 | AG41: =$AC$3*AC41 -> 0.2 | AH41: =$AD$3*AD41 -> 0.35 | AI41: =$AE$3*AE41 -> 0.45 | AK41: =SUM(AG41:AI41) -> 1
B44: Late penalty | C44: Student A | D44: =IF(D$8="x",D32-$B$46,D32) -> 1 | E44: =IF(E$8="x",E32-$B$46,E32) -> 1 | F44: 1 | G44: 1 | H44: 1 | I44: 1 | J44: 1 | K44: 1 | L44: 1 | M44: 1 | N44: 1 | O44: 1 | P44: 1 | Q44: 1 | R44: 1 | S44: 1 | T44: 1 | U44: 1 | V44: 1 | W44: 1 | X44: 1 | AC44: =AVERAGE(D44:O44) -> 1 | AD44: =AVERAGE(P44:U44) -> 1 | AE44: =AVERAGE(V44:X44) -> 1 | AG44: =$AC$3*AC44 -> 0.2 | AH44: =$AD$3*AD44 -> 0.35 | AI44: =$AE$3*AE44 -> 0.45 | AK44: =SUM(AG44:AI44) -> 1
B45: deduction
B46: =B23 -> 0.2 | C46: Student B | D46: =IF(D$11="x",D34-$B$46,D34) -> 1 | E46: =IF(E$11="x",E34-$B$46,E34) -> 1 | F46: 1 | G46: 1 | H46: 1 | I46: 1 | J46: 1 | K46: 1 | L46: 1 | M46: 1 | N46: 1 | O46: 1 | P46: 1 | Q46: 1 | R46: 1 | S46: 1 | T46: 1 | U46: 1 | V46: 1 | W46: 1 | X46: 1 | AC46: =AVERAGE(D46:O46) -> 1 | AD46: =AVERAGE(P46:U46) -> 1 | AE46: =AVERAGE(V46:X46) -> 1 | AG46: =$AC$3*AC46 -> 0.2 | AH46: =$AD$3*AD46 -> 0.35 | AI46: =$AE$3*AE46 -> 0.45 | AK46: =SUM(AG46:AI46) -> 1
B49: Late penalty | C49: Student A | D49: =IF(D8="x",IF(D44<0.5,0.5,D44),IF(D7/D$6<0.5,0.5,D7/D6)) -> 1 | E49: =IF(E8="x",IF(E44<0.5,0.5,E44),IF(E7/E$6<0.5,0.5,E7/E6)) -> 1 | F49: =IF(F8="x",IF(F44<0.5,0.5,F44),IF(F7/F$6<0.5,0.5,F7/F6)) -> 1 | G49: 1 | H49: 1 | I49: 1 | J49: 1 | K49: 1 | L49: 1 | M49: 1 | N49: 1 | O49: 1 | P49: 1 | Q49: 1 | R49: 1 | S49: 1 | T49: 1 | U49: 1 | V49: 1 | W49: 1 | X49: 1 | AC49: =AVERAGE(D49:O49) -> 1 | AD49: =AVERAGE(P49:U49) -> 1 | AE49: =AVERAGE(V49:X49) -> 1 | AG49: =$AC$3*AC49 -> 0.2 | AH49: =$AD$3*AD49 -> 0.35 | AI49: =$AE$3*AE49 -> 0.45 | AK49: =SUM(AG49:AI49) -> 1
B50: and floor of
B51: 0.5 | C51: Student B | D51: =IF(D11="x",IF(D46<0.5,0.5,D46),IF(D10/D$6<0.5,0.5,D10/D6)) -> 1 | E51: 1 | F51: 1 | G51: 1 | H51: 1 | I51: 1 | J51: 1 | K51: 1 | L51: 1 | M51: 1 | N51: 1 | O51: 1 | P51: 1 | Q51: 1 | R51: 1 | S51: 1 | T51: 1 | U51: 1 | V51: 1 | W51: 1 | X51: 1 | AC51: =AVERAGE(D51:O51) -> 1 | AD51: =AVERAGE(P51:U51) -> 1 | AE51: =AVERAGE(V51:X51) -> 1 | AG51: =$AC$3*AC51 -> 0.2 | AH51: =$AD$3*AD51 -> 0.35 | AI51: =$AE$3*AE51 -> 0.45 | AK51: =SUM(AG51:AI51) -> 1
C55: Student A | D55: =IF(D32=$D$76,$D$77,IF(D32>=$E$76,$E$77,IF(D32>=$F$76,$F$77,IF(D32>=$G$76,$G$77,IF(D32>=$H$76,$H$77,$I$77))))) -> 5 | E55: =IF(E32=$D$76,$D$77,IF(E32>=$E$76,$E$77,IF(E32>=$F$76,$F$77,IF(E32>=$G$76,$G$77,IF(E32>=$H$76,$H$77,$I$77))))) -> 5 | F55: 5 | G55: 5 | H55: 5 | I55: 5 | J55: 5 | K55: 5 | L55: 5 | M55: 5 | N55: 5 | O55: 5 | P55: 5 | Q55: 5 | R55: 5 | S55: 5 | T55: 5 | U55: 5 | V55: 5 | W55: 5 | X55: 5 | AC55: =AVERAGE(D55:O55) -> 5 | AD55: =AVERAGE(P55:U55) -> 5 | AE55: =AVERAGE(V55:X55) -> 5 | AG55: =$AC$3*AC55 -> 1 | AH55: =$AD$3*AD55 -> 1.75 | AI55: =$AE$3*AE55 -> 2.25 | AK55: =SUM(AG55:AI55) -> 5
C57: Student B | D57: =IF(D34=$D$76,$D$77,IF(D34>=$E$76,$E$77,IF(D34>=$F$76,$F$77,IF(D34>=$G$76,$G$77,IF(D34>=$H$76,$H$77,$I$77))))) -> 5 | E57: 5 | F57: 5 | G57: 5 | H57: 5 | I57: 5 | J57: 5 | K57: 5 | L57: 5 | M57: 5 | N57: 5 | O57: 5 | P57: 5 | Q57: 5 | R57: 5 | S57: 5 | T57: 5 | U57: 5 | V57: 5 | W57: 5 | X57: 5 | AC57: =AVERAGE(D57:O57) -> 5 | AD57: =AVERAGE(P57:U57) -> 5 | AE57: =AVERAGE(V57:X57) -> 5 | AG57: =$AC$3*AC57 -> 1 | AH57: =$AD$3*AD57 -> 1.75 | AI57: =$AE$3*AE57 -> 2.25 | AK57: =SUM(AG57:AI57) -> 5
B59: Scale Score
D60: Late Policy Impact Calculations
B62: Late work | C62: Student A | D62: =IF(D39=$D$76,$D$77,IF(D39>=$E$76,$E$77,IF(D39>=$F$76,$F$77,IF(D39>=$G$76,$G$77,IF(D39>=$H$76,$H$77,$I$77))))) -> 5 | E62: =IF(E39=$D$76,$D$77,IF(E39>=$E$76,$E$77,IF(E39>=$F$76,$F$77,IF(E39>=$G$76,$G$77,IF(E39>=$H$76,$H$77,$I$77))))) -> 5 | F62: 5 | G62: 5 | H62: 5 | I62: 5 | J62: 5 | K62: 5 | L62: 5 | M62: 5 | N62: 5 | O62: 5 | P62: 5 | Q62: 5 | R62: 5 | S62: 5 | T62: 5 | U62: 5 | V62: 5 | W62: 5 | X62: 5 | AC62: =AVERAGE(D62:O62) -> 5 | AD62: =AVERAGE(P62:U62) -> 5 | AE62: =AVERAGE(V62:X62) -> 5 | AG62: =$AC$3*AC62 -> 1 | AH62: =$AD$3*AD62 -> 1.75 | AI62: =$AE$3*AE62 -> 2.25 | AK62: =SUM(AG62:AI62) -> 5
B63: recorded as
B64: a zero (0). | C64: Student B | D64: =IF(D41=$D$76,$D$77,IF(D41>=$E$76,$E$77,IF(D41>=$F$76,$F$77,IF(D41>=$G$76,$G$77,IF(D41>=$H$76,$H$77,$I$77))))) -> 5 | E64: 5 | F64: 5 | G64: 5 | H64: 5 | I64: 5 | J64: 5 | K64: 5 | L64: 5 | M64: 5 | N64: 5 | O64: 5 | P64: 5 | Q64: 5 | R64: 5 | S64: 5 | T64: 5 | U64: 5 | V64: 5 | W64: 5 | X64: 5 | AC64: =AVERAGE(D64:O64) -> 5 | AD64: =AVERAGE(P64:U64) -> 5 | AE64: =AVERAGE(V64:X64) -> 5 | AG64: =$AC$3*AC64 -> 1 | AH64: =$AD$3*AD64 -> 1.75 | AI64: =$AE$3*AE64 -> 2.25 | AK64: =SUM(AG64:AI64) -> 5
B67: Late penalty | C67: Student A | D67: =IF(D44=$D$76,$D$77,IF(D44>=$E$76,$E$77,IF(D44>=$F$76,$F$77,IF(D44>=$G$76,$G$77,IF(D44>=$H$76,$H$77,$I$77))))) -> 5 | E67: =IF(E44=$D$76,$D$77,IF(E44>=$E$76,$E$77,IF(E44>=$F$76,$F$77,IF(E44>=$G$76,$G$77,IF(E44>=$H$76,$H$77,$I$77))))) -> 5 | F67: 5 | G67: 5 | H67: 5 | I67: 5 | J67: 5 | K67: 5 | L67: 5 | M67: 5 | N67: 5 | O67: 5 | P67: 5 | Q67: 5 | R67: 5 | S67: 5 | T67: 5 | U67: 5 | V67: 5 | W67: 5 | X67: 5 | AC67: =AVERAGE(D67:O67) -> 5 | AD67: =AVERAGE(P67:U67) -> 5 | AE67: =AVERAGE(V67:X67) -> 5 | AG67: =$AC$3*AC67 -> 1 | AH67: =$AD$3*AD67 -> 1.75 | AI67: =$AE$3*AE67 -> 2.25 | AK67: =SUM(AG67:AI67) -> 5
B68: of
B69: =B46 -> 0.2 | C69: Student B | D69: =IF(D46=$D$76,$D$77,IF(D46>=$E$76,$E$77,IF(D46>=$F$76,$F$77,IF(D46>=$G$76,$G$77,IF(D46>=$H$76,$H$77,$I$77))))) -> 5 | E69: 5 | F69: 5 | G69: 5 | H69: 5 | I69: 5 | J69: 5 | K69: 5 | L69: 5 | M69: 5 | N69: 5 | O69: 5 | P69: 5 | Q69: 5 | R69: 5 | S69: 5 | T69: 5 | U69: 5 | V69: 5 | W69: 5 | X69: 5 | AC69: =AVERAGE(D69:O69) -> 5 | AD69: =AVERAGE(P69:U69) -> 5 | AE69: =AVERAGE(V69:X69) -> 5 | AG69: =$AC$3*AC69 -> 1 | AH69: =$AD$3*AD69 -> 1.75 | AI69: =$AE$3*AE69 -> 2.25 | AK69: =SUM(AG69:AI69) -> 5
B72: Late penalty | C72: Student A | D72: =IF(D49=$D$76,$D$77,IF(D49>=$E$76,$E$77,IF(D49>=$F$76,$F$77,IF(D49>=$G$76,$G$77,IF(D49>=$H$76,$H$77,$I$77))))) -> 5 | E72: =IF(E49=$D$76,$D$77,IF(E49>=$E$76,$E$77,IF(E49>=$F$76,$F$77,IF(E49>=$G$76,$G$77,IF(E49>=$H$76,$H$77,$I$77))))) -> 5 | F72: =IF(F49=$D$76,$D$77,IF(F49>=$E$76,$E$77,IF(F49>=$F$76,$F$77,IF(F49>=$G$76,$G$77,IF(F49>=$H$76,$H$77,$I$77))))) -> 5 | G72: =IF(G49=$D$76,$D$77,IF(G49>=$E$76,$E$77,IF(G49>=$F$76,$F$77,IF(G49>=$G$76,$G$77,IF(G49>=$H$76,$H$77,$I$77))))) -> 5 | H72: 5 | I72: 5 | J72: 5 | K72: 5 | L72: 5 | M72: 5 | N72: 5 | O72: 5 | P72: 5 | Q72: 5 | R72: 5 | S72: 5 | T72: 5 | U72: 5 | V72: 5 | W72: 5 | X72: 5 | AC72: =AVERAGE(D72:O72) -> 5 | AD72: =AVERAGE(P72:U72) -> 5 | AE72: =AVERAGE(V72:X72) -> 5 | AG72: =$AC$3*AC72 -> 1 | AH72: =$AD$3*AD72 -> 1.75 | AI72: =$AE$3*AE72 -> 2.25 | AK72: =SUM(AG72:AI72) -> 5
B73: and floor of
B74: 0.5 | C74: Student B | D74: =IF(D51=$D$76,$D$77,IF(D51>=$E$76,$E$77,IF(D51>=$F$76,$F$77,IF(D51>=$G$76,$G$77,IF(D51>=$H$76,$H$77,$I$77))))) -> 5 | E74: =IF(E51=$D$76,$D$77,IF(E51>=$E$76,$E$77,IF(E51>=$F$76,$F$77,IF(E51>=$G$76,$G$77,IF(E51>=$H$76,$H$77,$I$77))))) -> 5 | F74: 5 | G74: 5 | H74: 5 | I74: 5 | J74: 5 | K74: 5 | L74: 5 | M74: 5 | N74: 5 | O74: 5 | P74: 5 | Q74: 5 | R74: 5 | S74: 5 | T74: 5 | U74: 5 | V74: 5 | W74: 5 | X74: 5 | AC74: =AVERAGE(D74:O74) -> 5 | AD74: =AVERAGE(P74:U74) -> 5 | AE74: =AVERAGE(V74:X74) -> 5 | AG74: =$AC$3*AC74 -> 1 | AH74: =$AD$3*AD74 -> 1.75 | AI74: =$AE$3*AE74 -> 2.25 | AK74: =SUM(AG74:AI74) -> 5
D76: 1 | E76: 0.9 | F76: 0.8 | G76: 0.7 | H76: 0.6 | I76: 0.5
D77: 5 | E77: 4 | F77: 3 | G77: 2 | H77: 1 | I77: 0

Sheet Graph of Results
C2: Student A | D2: Student A | E2: Student B | F2: Student B
B3: Straight Points | C3: ='Gradebook View'!AK7 -> 1 | D3: =IF(C3>=$N$3,$O$3,IF(C3>=$N$4,$O$4,IF(C3>=$N$5,$O$5,IF(C3>=$N$6,$O$6,$O$7)))) -> A | E3: ='Gradebook View'!AK10 -> 1 | F3: =IF(E3>=$N$3,$O$3,IF(E3>=$N$4,$O$4,IF(E3>=$N$5,$O$5,IF(E3>=$N$6,$O$6,$O$7)))) -> A | N3: 0.9 | O3: A
A4: Straight Points | B4: Pts: Late = 0 | C4: ='Gradebook View'!AK16 -> 1 | D4: A | E4: ='Gradebook View'!AK18 -> 1 | F4: A | N4: 0.8 | O4: B
B5: Pts: Late = % penalty | C5: ='Gradebook View'!AK21 -> 1 | D5: A | E5: ='Gradebook View'!AK23 -> 1 | F5: A | N5: 0.7 | O5: C
B6: Pts: Late = % penalty w/ floor | C6: ='Gradebook View'!AK26 -> 1 | D6: A | E6: ='Gradebook View'!AK28 -> 1 | F6: A | N6: 0.6 | O6: D
B7: Percent Based | C7: ='Gradebook View'!AK32 -> 1 | D7: A | E7: ='Gradebook View'!AK34 -> 1 | F7: A | N7: 0.5 | O7: E
A8: Straight Percentage | B8: %: Late = 0 | C8: ='Gradebook View'!AK39 -> 1 | D8: A | E8: ='Gradebook View'!AK41 -> 1 | F8: A
B9: %: Late = % penalty | C9: ='Gradebook View'!AK44 -> 1 | D9: A | E9: ='Gradebook View'!AK46 -> 1 | F9: A
B10: %: Late = % penalty w/ floor | C10: ='Gradebook View'!AK49 -> 1 | D10: A | E10: ='Gradebook View'!AK51 -> 1 | F10: A
B11: Scale Score | C11: ='Gradebook View'!AK55 -> 5 | E11: ='Gradebook View'!AK57 -> 5
A12: Scale Score | B12: Scale: Late = 0 | C12: ='Gradebook View'!AK62 -> 5 | E12: ='Gradebook View'!AK64 -> 5
B13: Scale: Late = % penalty | C13: ='Gradebook View'!AK67 -> 5 | E13: ='Gradebook View'!AK69 -> 5
B14: Scale: Late = % penalty w/ floor | C14: ='Gradebook View'!AK72 -> 5 | E14: ='Gradebook View'!AK74 -> 5

Sheet Grade in Progress
A1: Homework | B1: Yes
A2: Quiz | B2: No
A3: Test | C3: X
B4: Enter your own information in this region. | J4: Grades are calculated in this region and graphed to the right.
J6: Grading Rule | N6: Grade In-Progress
B7: Include In Grade | C7: Assignment Number | D7: Assignment | E7: Points Available | F7: Student Earned | G7: Late? | J7: If Late, then Zero | K7: 50% Floor | M7: Total Points Available | N7: Earned | O7: Late = 0 | P7: 50% Floor
B8: Yes | C8: 1 | D8: Homework | E8: 10 | F8: 8 | J8: =IF(B8="yes",IF(G8="X",0,F8),"") -> 8 | K8: =IF(B8="Yes",IF(F8/E8<0.5,0.5*E8,F8),"") -> 8 | M8: =SUM($E$8:E8) -> 10 | N8: =SUM($F$8:F8)/$M8 -> 0.8 | O8: =SUM($J$8:J8)/$M8 -> 0.8 | P8: =SUM($K$8:K8)/$M8 -> 0.8
B9: Yes | C9: 2 | D9: Homework | E9: 15 | F9: 12 | G9: x | J9: =IF(B9="yes",IF(G9="X",0,F9),"") -> 0 | K9: =IF(B9="Yes",IF(F9/E9<0.5,0.5*E9,F9),"") -> 12 | M9: =SUM($E$8:E9) -> 25 | N9: =SUM($F$8:F9)/$M9 -> 0.8 | O9: =SUM($J$8:J9)/$M9 -> 0.32 | P9: =SUM($K$8:K9)/$M9 -> 0.8
B10: Yes | C10: 3 | D10: Homework | E10: 8 | F10: 6 | G10: x | J10: 0 | K10: 6 | M10: =SUM($E$8:E10) -> 33 | N10: =SUM($F$8:F10)/$M10 -> 0.7878787879 | O10: =SUM($J$8:J10)/$M10 -> 0.2424242424 | P10: =SUM($K$8:K10)/$M10 -> 0.7878787879
B11: Yes | C11: 4 | D11: Quiz | E11: 35 | F11: 28 | J11: 28 | K11: 28 | M11: =SUM($E$8:E11) -> 68 | N11: =SUM($F$8:F11)/$M11 -> 0.7941176471 | O11: =SUM($J$8:J11)/$M11 -> 0.5294117647 | P11: =SUM($K$8:K11)/$M11 -> 0.7941176471
B12: Yes | C12: 5 | D12: Homework | E12: 12 | F12: 4 | J12: 4 | K12: 6 | M12: =SUM($E$8:E12) -> 80 | N12: =SUM($F$8:F12)/$M12 -> 0.725 | O12: =SUM($J$8:J12)/$M12 -> 0.5 | P12: =SUM($K$8:K12)/$M12 -> 0.75
B13: Yes | C13: 6 | D13: Homework | E13: 12 | F13: 4 | J13: 4 | K13: 6 | M13: =SUM($E$8:E13) -> 92 | N13: =SUM($F$8:F13)/$M13 -> 0.6739130435 | O13: =SUM($J$8:J13)/$M13 -> 0.4782608696 | P13: =SUM($K$8:K13)/$M13 -> 0.7173913043
B14: Yes | C14: 7 | D14: Homework | E14: 12 | F14: 8 | J14: 8 | K14: 8 | M14: =SUM($E$8:E14) -> 104 | N14: =SUM($F$8:F14)/$M14 -> 0.6730769231 | O14: =SUM($J$8:J14)/$M14 -> 0.5 | P14: =SUM($K$8:K14)/$M14 -> 0.7115384615
B15: Yes | C15: 8 | D15: Test | E15: 50 | F15: 47 | J15: 47 | K15: 47 | M15: =SUM($E$8:E15) -> 154 | N15: =SUM($F$8:F15)/$M15 -> 0.7597402597 | O15: =SUM($J$8:J15)/$M15 -> 0.6428571429 | P15: =SUM($K$8:K15)/$M15 -> 0.7857142857
B16: Yes | C16: 9 | D16: Homework | E16: 10 | F16: 5 | J16: 5 | K16: 5 | M16: =SUM($E$8:E16) -> 164 | N16: =SUM($F$8:F16)/$M16 -> 0.743902439 | O16: =SUM($J$8:J16)/$M16 -> 0.6341463415 | P16: =SUM($K$8:K16)/$M16 -> 0.7682926829
B17: Yes | C17: 10 | D17: Homework | E17: 12 | F17: 10 | J17: 10 | K17: 10 | M17: =SUM($E$8:E17) -> 176 | N17: =SUM($F$8:F17)/$M17 -> 0.75 | O17: =SUM($J$8:J17)/$M17 -> 0.6477272727 | P17: =SUM($K$8:K17)/$M17 -> 0.7727272727
B18: Yes | C18: 11 | D18: Quiz | E18: 25 | F18: 23 | J18: 23 | K18: 23 | M18: =SUM($E$8:E18) -> 201 | N18: =SUM($F$8:F18)/$M18 -> 0.7711442786 | O18: =SUM($J$8:J18)/$M18 -> 0.6815920398 | P18: =SUM($K$8:K18)/$M18 -> 0.7910447761
B19: Yes | C19: 12 | D19: Homework | E19: 10 | F19: 8 | J19: 8 | K19: 8 | M19: =SUM($E$8:E19) -> 211 | N19: =SUM($F$8:F19)/$M19 -> 0.7725118483 | O19: =SUM($J$8:J19)/$M19 -> 0.6872037915 | P19: =SUM($K$8:K19)/$M19 -> 0.7914691943
D21: Total Points | E21: =SUM(E8:E19) -> 211 | F21: =SUM(F8:F19) -> 163 | J21: =SUM(J8:J19) -> 145 | K21: =SUM(K8:K19) -> 167
F22: =F21/$E$21 -> 0.7725118483 | J22: =J21/$E$21 -> 0.6872037915 | K22: =K21/$E$21 -> 0.7914691943
